fUSD/lending_fUSD_20241105
["ID","MTS","AMOUNT","RATE_DAILY","PERIOD"]
[341313815,1730765431738,-156.48,0.00015342,2]
[341313816,1730765431747,-150.0,0.00016095,2]
[341313817,1730765431757,-300.0,0.00019725,2]
[341313818,1730765431767,-2022.0,0.0002,2]
[341313819,1730765431778,-250.0,0.00021,2]
[341313820,1730765431790,-308.0,0.00021484,2]
[341313821,1730765431801,-300.0,0.00023,2]
[341313822,1730765431812,-350.0,0.00025,2]
[341313823,1730765431824,-1007.20645091,0.0002517,30]
[341313824,1730765431833,-176.59525314,0.00025175,60]
[341313825,1730765431852,-455.64,0.00025175,60]
[341313826,1730765431865,-367.76474686,0.00025175,60]
[341313827,1730765431874,-423.92,0.00026844,2]
[341313828,1730765431884,-400.0,0.00027,2]
[341313829,1730765431893,-160.13,0.00027853,2]
[341313830,1730765431902,-83.30082375,0.00028,18]
[341313831,1730765431913,-1077.22617625,0.00028,18]
[341313832,1730765431922,-250.0,0.00028492,2]
[341313833,1730765431933,-259.2,0.00028504,2]
[341313834,1730765431942,-158.7300111,0.00028669,2]
[341313835,1730765431952,-91.2699889,0.00028669,2]
[341313836,1730765431962,-150.0,0.00028669,7]
[341313837,1730765431973,-555.13,0.00028696,2]
[341313838,1730765431983,-5668.05021368,0.00028744,2]
[341313839,1730765431997,-416.25598354,0.00028744,2]
[341313840,1730765432028,-17815.69380278,0.00028744,2]
[341313841,1730765432037,-156.04,0.00028747,2]
[341313842,1730765432046,-1000.0,0.00028759,2]
[341313843,1730765432056,-150.0,0.00028768,2]
[341313844,1730765432065,-1000.0,0.000288,2]
[341313845,1730765432074,-229.0,0.000288,2]
[341313846,1730765432083,-214.93,0.00028962,30]
[341313847,1730765432093,-1251.0,0.00028966,2]
[341313848,1730765432102,-557.0,0.00028966,2]
[341313849,1730765432112,-150.0,0.00028966,2]
[341313850,1730765432122,-1987.0,0.00028966,2]
[341313851,1730765432131,-1794.0,0.00028966,2]
[341313852,1730765432141,-2906.0,0.00028966,2]
[341313853,1730765432152,-1256.0,0.00028966,2]
[341313854,1730765432161,-1869.197,0.00028966,2]
[341313855,1730765432171,-5916.0,0.00028966,2]
[341313857,1730765432182,-13601.0,0.00028966,2]
[341313859,1730765432195,-1156.0,0.00028966,2]
[341313861,1730765432205,-423.92,0.00029108,2]
[341313863,1730765432214,-427.12,0.00029178,2]
[341313864,1730765432223,-761.0,0.00029178,2]
[341313865,1730765432233,-427.12,0.00029178,2]
[341313866,1730765432242,-761.0,0.00029178,2]
[341313867,1730765432251,-427.12,0.00029178,2]
[341313868,1730765432261,-761.0,0.00029178,2]
[341313869,1730765432270,-427.12,0.00029178,2]
[341313870,1730765432280,-761.0,0.00029178,2]
[341313871,1730765432289,-761.0,0.00029178,2]
[341313872,1730765432298,-427.12,0.00029178,2]
[341313873,1730765432307,-173.67,0.0002942,2]
[341313874,1730765432317,-166.68,0.00029541,2]
[341313875,1730765432327,-150.0,0.00029866,2]
[341313876,1730765432336,-150.0,0.00029869,2]
[341313877,1730765432345,-150.0,0.0002987,2]
[341313878,1730765432355,-150.0,0.00029872,2]
[341313879,1730765432364,-150.0,0.00029874,2]
[341313880,1730765432375,-150.0,0.00029877,2]
[341313881,1730765432384,-150.0,0.00029878,2]
[341313882,1730765432393,-150.0,0.00029885,2]
[341313883,1730765432403,-150.0,0.00029885,2]
[341313884,1730765432413,-150.0,0.00029886,2]
[341313885,1730765432423,-150.0,0.0002989,2]
[341313886,1730765432433,-150.0,0.00029893,2]
[341313887,1730765432442,-150.0,0.00029895,2]
[341313888,1730765432452,-150.0,0.00029896,2]
[341313889,1730765432461,-150.0,0.00029897,2]
[341313890,1730765432470,-150.0,0.000299,2]
[341313891,1730765432479,-150.0,0.00029907,2]
[341313892,1730765432489,-150.0,0.00029907,2]
[341313893,1730765432498,-150.0,0.00029908,2]
[341313894,1730765432508,-150.0,0.00029912,2]
[341313895,1730765432519,-150.0,0.00029915,2]
[341313896,1730765432529,-150.0,0.00029917,2]
[341313897,1730765432538,-150.0,0.0002992,2]
[341313898,1730765432547,-150.0,0.00029925,2]
[341313899,1730765432557,-150.0,0.00029926,2]
[341313900,1730765432566,-150.0,0.00029929,2]
[341313901,1730765432575,-150.0,0.00029932,2]
[341313902,1730765432584,-150.0,0.00029935,2]
[341313903,1730765432594,-150.0,0.00029936,2]
[341313904,1730765432606,-150.0,0.00029937,2]
[341313905,1730765432615,-150.0,0.0002994,2]
[341313906,1730765432624,-150.0,0.00029942,2]
[341313907,1730765432634,-150.0,0.00029944,2]
[341313908,1730765432643,-150.0,0.00029945,2]
[341313909,1730765432652,-150.0,0.00029946,2]
[341313910,1730765432662,-150.0,0.00029948,2]
[341313911,1730765432671,-150.0,0.00029948,2]
[341313912,1730765432681,-300.0,0.00029952,2]
[341313913,1730765432690,-150.0,0.00029953,2]
[341313914,1730765432699,-150.0,0.00029957,2]
[341313915,1730765432708,-150.0,0.0002996,2]
[341313916,1730765432717,-150.0,0.0002996,2]
[341313917,1730765432726,-150.0,0.00029964,2]
[341313918,1730765432736,-150.0,0.00029965,2]
[341313919,1730765432745,-150.0,0.00029968,2]
[341313920,1730765432754,-150.0,0.00029971,2]
[341313921,1730765432763,-150.0,0.00029973,2]
[341313922,1730765432773,-150.0,0.00029973,2]
[341313923,1730765432782,-170.98,0.00029974,10]
[341313924,1730765432791,-150.0,0.00029975,2]
[341313925,1730765432800,-150.0,0.00029983,2]
[341313926,1730765432809,-150.0,0.00029984,2]
[341313927,1730765432818,-205.18,0.00029984,10]
[341313928,1730765432827,-150.0,0.00029988,2]
[341313929,1730765432837,-150.0,0.00029989,2]
[341313930,1730765432847,-150.0,0.00029994,2]
[341313931,1730765432857,-179.38692691,0.00029999,2]
[341313932,1730765432866,-500.0,0.00029999,2]
[341313933,1730765432876,-500.0,0.00029999,2]
[341313934,1730765432885,-458.57349217,0.00029999,2]
[341313935,1730765432894,-22428.64663386,0.0003,2]
[341313936,1730765432904,-2506.50755646,0.0003,15]
[341313937,1730765432913,-150.0,0.00030001,2]
[341313938,1730765432922,-150.0,0.00030007,2]
[341313939,1730765432932,-150.0,0.00030011,2]
[341313940,1730765432942,-150.0,0.00030013,2]
[341313941,1730765432951,-150.0,0.00030018,2]
[341313942,1730765432961,-150.0,0.0003002,2]
[341313943,1730765432970,-150.0,0.0003002,2]
[341313944,1730765432979,-150.0,0.00030021,2]
[341313945,1730765432988,-150.0,0.00030021,2]
[341313946,1730765433002,-150.0,0.00030022,2]
[341313947,1730765433012,-150.0,0.00030022,2]
[341313948,1730765433022,-150.0,0.00030023,2]
[341313949,1730765433031,-150.0,0.00030024,2]
[341313950,1730765433041,-150.0,0.00030024,2]
[341313951,1730765433051,-150.0,0.00030024,2]
[341313952,1730765433061,-150.0,0.00030025,2]
[341313953,1730765433071,-150.0,0.00030028,2]
[341313954,1730765433080,-150.0,0.00030029,2]
[341313955,1730765433090,-150.0,0.00030029,2]
[341313956,1730765433100,-158.51714257,0.00030036,2]
[341313957,1730765433109,-171.03504408,0.00030036,2]
[341313958,1730765433119,-653.41506065,0.00030036,15]
[341313959,1730765433128,-161.78311514,0.00030036,2]
[341313960,1730765433138,-2503.0405849,0.00030036,2]
[341313961,1730765433148,-308.90004638,0.00030036,2]
[341313962,1730765433158,-150.0,0.00030042,2]
[341313963,1730765433168,-150.0,0.00030043,2]
[341313964,1730765433178,-151.13,0.00030044,2]
[341313965,1730765433194,-150.0,0.00030046,2]
[341313966,1730765433204,-150.0,0.00030047,2]
[341313967,1730765433214,-150.0,0.0003005,2]
[341313968,1730765433224,-150.0,0.00030053,2]
[341313969,1730765433235,-625.64554776,0.00030055,2]
[341313970,1730765433244,-625.64554776,0.00030055,2]
[341313971,1730765433254,-150.0,0.00030056,2]
[341313972,1730765433265,-150.0,0.00030059,2]
[341313973,1730765433275,-150.0,0.00030063,2]
[341313974,1730765433285,-150.0,0.00030067,2]
[341313975,1730765433295,-504.0,0.00030068,14]
[341313976,1730765433306,-163.64819537,0.00030068,2]
[341313977,1730765433317,-500.0,0.00030075,14]
[341313978,1730765433327,-150.0,0.00030075,2]
[341313979,1730765433338,-150.0,0.0003008,2]
[341313980,1730765433348,-150.0,0.00030081,2]
[341313981,1730765433359,-150.0,0.00030085,2]
[341313982,1730765433370,-150.0,0.0003009,2]
[341313983,1730765433379,-150.0,0.00030092,2]
[341313984,1730765433389,-150.0,0.00030097,2]
[341313985,1730765433398,-150.0,0.00030098,2]
[341313986,1730765433408,-150.0,0.00030099,2]
[341313987,1730765433418,-398.0,0.000301,14]
[341313988,1730765433427,-196.0,0.000301,14]
[341313989,1730765433438,-150.0,0.00030101,2]
[341313990,1730765433447,-150.0,0.00030112,2]
[341313991,1730765433457,-150.0,0.00030113,2]
[341313992,1730765433468,-150.0,0.00030114,2]
[341313993,1730765433478,-150.0,0.00030117,2]
[341313994,1730765433488,-150.0,0.00030119,2]
[341313995,1730765433498,-150.0,0.00030122,2]
[341313996,1730765433507,-150.0,0.00030122,2]
[341313997,1730765433517,-150.0,0.00030123,2]
[341313998,1730765433527,-150.0,0.00030124,2]
[341313999,1730765433536,-150.0,0.00030124,2]
[341314000,1730765433546,-150.0,0.00030125,2]
[341314001,1730765433556,-300.0,0.00030135,10]
[341314002,1730765433565,-150.0,0.00030135,2]
[341314003,1730765433575,-609.0,0.00030136,5]
[341314004,1730765433585,-500.0,0.00030136,2]
[341314005,1730765433594,-494.51274855,0.00030136,2]
[341314006,1730765433603,-500.0,0.00030136,2]
[341314007,1730765433613,-500.0,0.00030136,2]
[341314008,1730765433622,-500.0,0.00030136,2]
[341314009,1730765433632,-500.0,0.00030136,2]
[341314010,1730765433641,-560.0378623,0.00030136,2]
[341314011,1730765433650,-211.37811237,0.00030136,2]
[341314012,1730765433659,-500.0,0.00030136,2]
[341314013,1730765433669,-500.0,0.00030136,2]
[341314014,1730765433678,-500.0,0.00030136,2]
[341314015,1730765433689,-560.42,0.00030136,2]
[341314016,1730765433699,-1598.15,0.00030136,2]
[341314017,1730765433708,-1598.15,0.00030136,2]
[341314018,1730765433717,-1598.15,0.00030136,2]
[341314019,1730765433727,-1598.15,0.00030136,2]
[341314020,1730765433736,-1598.15,0.00030136,2]
[341314021,1730765433745,-505.49586249,0.00030136,2]
[341314022,1730765433755,-1598.15,0.00030136,2]
[341314023,1730765433764,-1598.15,0.00030136,2]
[341314024,1730765433774,-1598.15,0.00030136,2]
[341314025,1730765433783,-1598.15,0.00030136,2]
[341314026,1730765433792,-1598.15,0.00030136,2]
[341314027,1730765433803,-1598.15,0.00030136,2]
[341314028,1730765433812,-1598.15,0.00030136,2]
[341314029,1730765433821,-1598.15,0.00030136,2]
[341314030,1730765433831,-1598.15,0.00030136,2]
[341314031,1730765433840,-1598.15,0.00030136,2]
[341314032,1730765433849,-1598.15,0.00030136,2]
[341314033,1730765433858,-1598.15,0.00030136,2]
[341314034,1730765433867,-1598.15,0.00030136,2]
[341314035,1730765433877,-515.3505421,0.00030136,2]
[341314036,1730765433886,-1598.15,0.00030136,2]
[341314037,1730765433895,-1598.15,0.00030136,2]
[341314038,1730765433905,-1598.15,0.00030136,2]
[341314039,1730765433914,-500.0,0.00030136,2]
[341314040,1730765433923,-1598.15,0.00030136,2]
[341314041,1730765433933,-508.95727014,0.00030136,2]
[341314042,1730765433942,-1598.15,0.00030136,2]
[341314043,1730765433952,-1598.32669652,0.00030136,2]
[341314044,1730765433961,-621.86447432,0.00030136,2]
[341314045,1730765433971,-500.0,0.00030136,2]
[341314046,1730765433980,-500.0,0.00030136,2]
[341314047,1730765433989,-500.0,0.00030136,2]
[341314048,1730765433998,-500.0,0.00030136,2]
[341314049,1730765434008,-632.64825315,0.00030136,2]
[341314050,1730765434018,-500.0,0.00030136,2]
[341314051,1730765434027,-500.0,0.00030136,2]
[341314052,1730765434036,-239.71452362,0.00030136,2]
[341314053,1730765434045,-500.0,0.00030136,2]
[341314054,1730765434055,-538.05808541,0.00030136,2]
[341314055,1730765434064,-500.0,0.00030136,2]
[341314056,1730765434073,-500.0,0.00030136,2]
[341314057,1730765434082,-500.0,0.00030136,2]
[341314058,1730765434091,-500.0,0.00030136,2]
[341314059,1730765434100,-500.0,0.00030136,2]
[341314060,1730765434109,-500.0,0.00030136,2]
[341314061,1730765434119,-509.68390863,0.00030136,2]
[341314062,1730765434131,-500.0,0.00030136,2]
[341314063,1730765434140,-162.63847391,0.00030136,2]
[341314064,1730765434149,-500.0,0.00030136,2]
[341314065,1730765434158,-500.0,0.00030136,2]
[341314066,1730765434167,-500.0,0.00030136,2]
[341314067,1730765434176,-383.18368144,0.00030136,2]
[341314068,1730765434194,-500.0,0.00030136,2]
[341314069,1730765434203,-500.0,0.00030136,2]
[341314070,1730765434212,-500.0,0.00030136,2]
[341314071,1730765434221,-500.0,0.00030136,2]
[341314072,1730765434230,-500.0,0.00030136,2]
[341314073,1730765434239,-500.0,0.00030136,2]
[341314074,1730765434248,-500.0,0.00030136,2]
[341314075,1730765434258,-234.54795647,0.00030136,2]
[341314076,1730765434268,-500.0,0.00030136,2]
[341314077,1730765434277,-500.0,0.00030136,2]
[341314078,1730765434295,-500.0,0.00030136,2]
[341314079,1730765434306,-500.0,0.00030136,2]
[341314080,1730765434316,-500.0,0.00030136,2]
[341314081,1730765434326,-528.85304279,0.00030136,2]
[341314082,1730765434335,-500.0,0.00030136,2]
[341314083,1730765434345,-500.0,0.00030136,2]
[341314084,1730765434355,-500.0,0.00030136,2]
[341314085,1730765434364,-500.0,0.00030136,2]
[341314086,1730765434373,-500.0,0.00030136,2]
[341314087,1730765434383,-500.0,0.00030136,2]
[341314088,1730765434393,-500.0,0.00030136,2]
[341314089,1730765434403,-500.0,0.00030136,2]
[341314090,1730765434413,-500.0,0.00030136,2]
[341314091,1730765434423,-500.0,0.00030136,2]
[341314092,1730765434435,-500.0,0.00030136,2]
[341314093,1730765434446,-500.0,0.00030136,2]
[341314094,1730765434456,-500.0,0.00030136,2]
[341314095,1730765434465,-500.0,0.00030136,2]
[341314096,1730765434475,-500.0,0.00030136,2]
[341314097,1730765434485,-500.0,0.00030136,2]
[341314098,1730765434495,-500.0,0.00030136,2]
[341314099,1730765434504,-596.02108856,0.00030136,2]
[341314100,1730765434514,-468.75349269,0.00030136,2]
[341314101,1730765434524,-500.0,0.00030136,2]
[341314102,1730765434533,-500.0,0.00030136,2]
[341314103,1730765434543,-524.63817395,0.00030136,2]
[341314104,1730765434553,-500.0,0.00030136,2]
[341314105,1730765434799,-500.0,0.00030136,2]
[341314106,1730765434809,-505.89424594,0.00030136,2]
[341314107,1730765434819,-500.0,0.00030136,2]
[341314108,1730765434828,-500.0,0.00030136,2]
[341314109,1730765434837,-54.55095385,0.00030136,2]
[341314110,1730765434883,-445.44904615,0.00030136,2]
[341314111,1730765434893,-500.0,0.00030136,2]
[341314112,1730765434902,-500.0,0.00030136,2]
[341314113,1730765434912,-300.59306162,0.00030136,2]
[341314114,1730765434922,-500.0,0.00030136,2]
[341314115,1730765434935,-349.62842775,0.00030136,2]
[341314116,1730765434945,-500.0,0.00030136,2]
[341314117,1730765434954,-500.0,0.00030136,2]
[341314118,1730765434964,-500.0,0.00030136,2]
[341314119,1730765434974,-500.0,0.00030136,2]
[341314120,1730765434984,-500.0,0.00030136,2]
[341314121,1730765434993,-500.0,0.00030136,2]
[341314122,1730765435003,-500.0,0.00030136,2]
[341314123,1730765435012,-500.0,0.00030136,2]
[341314124,1730765435023,-500.0,0.00030136,2]
[341314125,1730765435032,-344.06741112,0.00030136,2]
[341314126,1730765435041,-500.0,0.00030136,2]
[341314127,1730765435049,-500.0,0.00030136,2]
[341314128,1730765435059,-500.0,0.00030136,2]
[341314129,1730765435068,-500.0,0.00030136,2]
[341314130,1730765435077,-500.0,0.00030136,2]
[341314131,1730765435086,-500.0,0.00030136,2]
[341314132,1730765435095,-500.0,0.00030136,2]
[341314133,1730765435104,-521.9573249,0.00030136,2]
[341314134,1730765435114,-500.0,0.00030136,2]
[341314135,1730765435124,-500.0,0.00030136,2]
[341314136,1730765435134,-500.0,0.00030136,2]
[341314137,1730765435143,-500.0,0.00030136,2]
[341314138,1730765435153,-545.05803554,0.00030136,2]
[341314139,1730765435162,-425.99966199,0.00030136,2]
[341314140,1730765435197,-74.00033801,0.00030136,2]
[341314141,1730765435206,-500.0,0.00030136,2]
[341314142,1730765435216,-500.0,0.00030136,2]
[341314143,1730765435225,-201.88733554,0.00030136,2]
[341314144,1730765435236,-500.0,0.00030136,2]
[341314145,1730765435245,-306.65267915,0.00030136,2]
[341314146,1730765435258,-179.28850373,0.00030136,2]
[341314147,1730765435270,-500.0,0.00030136,2]
[341314148,1730765435284,-500.0,0.00030136,2]
[341314149,1730765435293,-500.0,0.00030136,2]
[341314150,1730765435303,-500.0,0.00030136,2]
[341314151,1730765435312,-500.0,0.00030136,2]
[341314152,1730765435321,-500.0,0.00030136,2]
[341314153,1730765435331,-500.0,0.00030136,2]
[341314154,1730765435340,-173.41028922,0.00030136,2]
[341314155,1730765435350,-500.0,0.00030136,2]
[341314156,1730765435360,-316.79312072,0.00030136,2]
[341314157,1730765435370,-181.03789744,0.00030136,2]
[341314158,1730765435380,-544.04015464,0.00030136,2]
[341314159,1730765435392,-500.0,0.00030136,2]
[341314160,1730765435402,-500.0,0.00030136,2]
[341314161,1730765435411,-605.12643493,0.00030136,2]
[341314162,1730765435421,-521.01675943,0.00030136,2]
[341314163,1730765435433,-500.0,0.00030136,2]
[341314164,1730765435443,-500.0,0.00030136,2]
[341314165,1730765435453,-500.0,0.00030136,2]
[341314166,1730765435463,-258.92909671,0.00030136,2]
[341314167,1730765435472,-509.88381016,0.00030136,2]
[341314168,1730765435482,-500.0,0.00030136,2]
[341314169,1730765435491,-500.0,0.00030136,2]
[341314170,1730765435502,-500.0,0.00030136,2]
[341314171,1730765435511,-500.0,0.00030136,2]
[341314172,1730765435522,-500.0,0.00030136,2]
[341314173,1730765435531,-500.0,0.00030136,2]
[341314174,1730765435540,-500.0,0.00030136,2]
[341314175,1730765435549,-500.0,0.00030136,2]
[341314176,1730765435559,-500.0,0.00030136,2]
[341314177,1730765435569,-386.8775265,0.00030136,2]
[341314178,1730765435579,-500.0,0.00030136,2]
[341314179,1730765435588,-558.20946938,0.00030136,2]
[341314180,1730765435598,-500.0,0.00030136,2]
[341314181,1730765435608,-459.8,0.00030136,2]
[341314182,1730765435619,-503.00077062,0.00030136,2]
[341314183,1730765435629,-500.0,0.00030136,2]
[341314184,1730765435638,-500.0,0.00030136,2]
[341314185,1730765435648,-500.0,0.00030136,2]
[341314186,1730765435657,-500.0,0.00030136,2]
[341314187,1730765435666,-500.0,0.00030136,2]
[341314188,1730765435675,-500.0,0.00030136,2]
[341314189,1730765435687,-500.0,0.00030136,2]
[341314190,1730765435696,-500.0,0.00030136,2]
[341314191,1730765435706,-500.0,0.00030136,2]
[341314192,1730765435715,-500.0,0.00030136,2]
[341314193,1730765435725,-529.19943769,0.00030136,2]
[341314194,1730765435734,-1163.84,0.00030136,2]
[341314195,1730765435743,-1163.84,0.00030136,2]
[341314196,1730765435753,-500.0,0.00030136,2]
[341314197,1730765435762,-1163.84,0.00030136,2]
[341314198,1730765435772,-516.98002888,0.00030136,2]
[341314199,1730765435781,-1163.84,0.00030136,2]
[341314200,1730765435791,-500.0,0.00030136,2]
[341314201,1730765435801,-1097.0250314,0.00030136,2]
[341314202,1730765435828,-66.8149686,0.00030136,2]
[341314203,1730765435839,-1163.84,0.00030136,2]
[341314204,1730765435848,-1163.84,0.00030136,2]
[341314205,1730765435857,-1163.84,0.00030136,2]
[341314206,1730765435867,-1163.84,0.00030136,2]
[341314207,1730765435876,-1163.84,0.00030136,2]
[341314208,1730765435886,-1163.84,0.00030136,2]
[341314209,1730765435895,-1163.84,0.00030136,2]
[341314210,1730765435907,-1163.84,0.00030136,2]
[341314211,1730765435917,-1163.84,0.00030136,2]
[341314212,1730765435926,-565.29456991,0.00030136,2]
[341314213,1730765435959,-598.54543009,0.00030136,2]
[341314214,1730765435969,-567.71739632,0.00030136,2]
[341314215,1730765435982,-596.12260368,0.00030136,2]
[341314216,1730765435992,-776.10805337,0.00030136,2]
[341314217,1730765436004,-387.73194663,0.00030136,2]
[341314218,1730765436013,-1163.84,0.00030136,2]
[341314219,1730765436023,-500.0,0.00030136,2]
[341314220,1730765436032,-1163.84,0.00030136,2]
[341314221,1730765436043,-1163.84,0.00030136,2]
[341314222,1730765436052,-1163.84,0.00030136,2]
[341314223,1730765436062,-1163.84,0.00030136,2]
[341314224,1730765436071,-691.69902605,0.00030136,2]
[341314225,1730765436090,-472.14097395,0.00030136,2]
[341314226,1730765436099,-596.39951189,0.00030136,2]
[341314227,1730765436165,-567.63921098,0.00030136,2]
[341314228,1730765436174,-193.69121748,0.00030136,2]
[341314232,1730765437874,-150.0,0.00029881,2]
[341314233,1730765437884,-150.0,0.00029882,2]
[341314234,1730765437893,-150.0,0.00029887,2]
[341314235,1730765437902,-150.0,0.00029887,2]
[341314236,1730765437911,-150.0,0.00029896,2]
[341314237,1730765437921,-150.0,0.00029934,2]
[341314238,1730765437930,-150.0,0.00029952,2]
[341314239,1730765437942,-150.0,0.00029967,2]
[341314240,1730765437951,-101.15361802,0.00029967,2]
[341314241,1730765437963,-48.84638198,0.00029967,2]
[341314242,1730765437972,-150.0,0.00029974,2]
[341314243,1730765437981,-150.0,0.00029977,2]
[341314244,1730765437991,-150.0,0.00029995,2]
[341314245,1730765438000,-150.0,0.00029996,2]
[341314246,1730765438009,-101.02239073,0.00030004,2]
[341314247,1730765438021,-48.97760927,0.00030004,2]
[341314248,1730765438030,-150.0,0.00030014,2]
[341314249,1730765438040,-150.0,0.00030018,2]
[341314250,1730765438049,-150.0,0.00030032,2]
[341314251,1730765438058,-150.0,0.00030038,2]
[341314252,1730765438067,-150.0,0.00030055,2]
[341314253,1730765438077,-150.0,0.00030081,2]
[341314254,1730765438087,-150.0,0.00030094,2]
[341314255,1730765438098,-150.0,0.00030102,2]
[341314256,1730765438108,-150.0,0.00030127,2]
[341314257,1730765438117,-437.63265745,0.00030136,2]
[341314258,1730765438127,-500.0,0.00030136,2]
[341314259,1730765438137,-500.0,0.00030136,2]
[341314260,1730765438147,-272.74,0.00030136,2]
[341314261,1730765438156,-500.0,0.00030136,2]
[341314262,1730765438166,-218.99,0.00030136,2]
[341314263,1730765438175,-500.0,0.00030136,2]
[341314264,1730765438189,-173.88091315,0.00030136,2]
[341314265,1730765438198,-632.37124919,0.00030136,2]
[341314266,1730765438207,-500.0,0.00030136,2]
[341314267,1730765438217,-500.0,0.00030136,2]
[341314268,1730765438226,-500.0,0.00030136,2]
[341314269,1730765438235,-160.0,0.00030136,2]
[341314270,1730765438244,-94.50885727,0.00030136,2]
[341314271,1730765438263,-405.49114273,0.00030136,2]
[341314272,1730765438272,-500.0,0.00030136,2]
[341314273,1730765438281,-593.77554542,0.00030136,2]
[341314274,1730765438291,-500.0,0.00030136,2]
[341314275,1730765438301,-537.51849026,0.00030136,2]
[341314276,1730765438311,-614.08208606,0.00030136,2]
[341314277,1730765438320,-500.0,0.00030136,2]
[341314278,1730765438330,-500.0,0.00030136,2]
[341314279,1730765438338,-500.0,0.00030136,2]
[341314280,1730765438347,-594.64443692,0.00030136,2]
[341314281,1730765438356,-2284.83,0.00030136,2]
[341314282,1730765438365,-2284.83,0.00030136,2]
[341314283,1730765438375,-2284.83,0.00030136,2]
[341314284,1730765438384,-1746.48372909,0.00030136,2]
[341314286,1730765439809,-854.95,0.00030126,10]
[341314287,1730765439819,-538.34627091,0.00030136,2]
[341314288,1730765439829,-1013.37958746,0.00030136,2]
[341314289,1730765439915,-1271.45041254,0.00030136,2]
[341314290,1730765439927,-316.62811766,0.00030136,2]
[341314296,1730765442848,-1000.0,0.000294,2]
[341314297,1730765442858,-1968.20188234,0.00030136,2]
[341314298,1730765442867,-2284.83,0.00030136,2]
[341314299,1730765442876,-2284.83,0.00030136,2]
[341314300,1730765442885,-2284.83,0.00030136,2]
[341314301,1730765442895,-2284.83,0.00030136,2]
[341314302,1730765442905,-2284.83,0.00030136,2]
[341314303,1730765442914,-2284.83,0.00030136,2]
[341314304,1730765442925,-2284.83,0.00030136,2]
[341314305,1730765442934,-2284.83,0.00030136,2]
[341314306,1730765442945,-2284.83,0.00030136,2]
[341314307,1730765442954,-2284.83,0.00030136,2]
[341314308,1730765442963,-2284.83,0.00030136,2]
[341314309,1730765442972,-2284.83,0.00030136,2]
[341314310,1730765442982,-2284.83,0.00030136,2]
[341314311,1730765442993,-2284.83,0.00030136,2]
[341314312,1730765443003,-2284.83,0.00030136,2]
[341314313,1730765443012,-2284.83,0.00030136,2]
[341314314,1730765443022,-2284.83,0.00030136,2]
[341314315,1730765443031,-500.0,0.00030136,2]
[341314316,1730765443041,-2284.98938399,0.00030136,2]
[341314317,1730765443051,-500.0,0.00030136,2]
[341314318,1730765443060,-500.0,0.00030136,2]
[341314319,1730765443070,-500.0,0.00030136,2]
[341314320,1730765443080,-500.0,0.00030136,2]
[341314321,1730765443089,-500.0,0.00030136,2]
[341314322,1730765443100,-500.0,0.00030136,2]
[341314323,1730765443111,-500.0,0.00030136,2]
[341314324,1730765443120,-500.0,0.00030136,2]
[341314325,1730765443129,-500.0,0.00030136,2]
[341314326,1730765443139,-500.0,0.00030136,2]
[341314327,1730765443149,-500.0,0.00030136,2]